{"text_format":"1","workbook":"xlsx","n_sheets":10,"sheets":["PONDERACIONES","ÍNDICE","Cat. SO","Cat. Res","Aplic. SO","Obligaciones","Art. 87","Art. 88","Art. 89","Reporte"],"not_rendered":{"charts":0,"images":3,"macros":1,"external_links":0,"defined_names":233,"comments":0,"pivot_tables":0},"unopened":[],"bounds":{"document_bytes":16777216,"sheet_cells":100000,"rows_first":2000,"rows_last":500,"rows_between":2000,"halvings":0,"cell_chars":16384,"cell_head_chars":4096},"cells_cut":0,"cells_raw":0,"read":"whole","date_system":"1900"}

{"sheet":"PONDERACIONES","index":0,"n_rows":49,"n_cols":11,"rows_kept":49,"cut":false,"hidden":true,"merged":[[11,1,11,4],[12,1,12,4],[13,1,13,4],[14,1,14,4],[15,1,15,4],[0,0,0,8],[7,1,7,4],[8,1,8,4],[9,1,9,4],[10,1,10,4]]}
["TABLA DE PESOS DEFINITIVA"]
["CASO",1,2,3,4,5,6,7,8]
["IOC",0.6,"",0.92307692307692302,0.70588235294117652,1,"","","","ÍndiceObligacionesComunes",0.6]
["IOEG",0.35,0.83333333333333326,"",0.29411764705882354,"",1,"","","ÍndiceObligacionesEspecificasLeyGeneral-LeyLocal",0.35]
["IOA",0.05,0.16666666666666666,7.6923076923076927E-2,"","","",1,"","ÍndiceObligacionesEspecificasLG-LL",0.05]
[null,{"$f":"SUM(B3:B5)","v":1},{"$f":"SUM(C3:C5)","v":0.99999999999999989},1,1,1,1,1,0,null,{"$f":"SUM(K3:K5)","v":1}]
[]
["GRUPO","EXPLICACIÓN"]
[1,"Aplican los tres componentes "]
[2,"Aplica solo segundo y tercer componente"]
[3,"Aplica solo primer y tercer componente"]
[4,"Aplica solo primer y segundo componente"]
[5,"Solo aplica primer componente"]
[6,"Solo aplica segundo componente"]
[7,"Solo aplica el tercer componente"]
[8,"Ningún componente aplica"]
[]
[]
[]
[]
[]
[]
[]
[]
[]
[]
[]
[]
[]
[]
[]
[]
[]
[]
[]
[]
[]
[]
[]
[]
[]
[]
[]
[]
[]
[]
[]
[]
[null,null,"PERSONALIZADO LIC. JULIO CESAR VARGAS AYALA"]

{"sheet":"ÍNDICE","index":1,"n_rows":9,"n_cols":4,"rows_kept":9,"cut":false,"hidden":false,"merged":[]}
[null,null,null,{"$f":"#REF!","v":{"$error":"#REF!"}}]
[null,null,null,"ÍNDICE"]
[null,null,"Aplicabilidad Específicos","Aplicación de obligaciones específicas"]
[null,null,"Aplicabilidad Art.81","Configuración de la tabla de aplicabilidad"]
[null,81,"Art. 81","Art. 81 - Obligaciones comunes para todos los sujetos obligados del Estado de Baja California"]
[null,82,"Art. 82","Art. 82 - Obligaciones comunes para todos los sujetos obligados del Estado de Baja California"]
[null,null,"Art 83. VIII","Art. 83 - Fracc. VIII - Instituto - obligaciones específicas"]
[null,null,"Resultado Verificación","Índice cumplimiento en portales de transparencia"]
[null,null,"Reporte","Recomendaciones y observaciones derivadas de la verificación diagnóstica de las obligaciones de transparencia establecidas en el título quinto de la LGT."]

{"sheet":"Cat. SO","index":2,"n_rows":2,"n_cols":3,"rows_kept":2,"cut":false,"hidden":true,"merged":[]}
["Volver al índice","Clave de SO","Nombre de SO"]
["Órganos Autónomos ",70,"Instituto de Transparencia, Acceso a la Información Pública y Protección de Datos Personales del Estado de Baja California"]

{"sheet":"Cat. Res","index":3,"n_rows":30,"n_cols":7,"rows_kept":30,"cut":false,"hidden":true,"merged":[]}
["Volver al índice"]
[1,null,"Aplica?",null,null,null,"Tipo"]
[0.5,null,"SI",null,null,null,"Observación"]
[0,null,"NO",null,null,null,"Recomendación"]
["Justificado",null,null,null,null,null,"Requerimiento"]
[]
[]
[]
[]
[]
[]
[]
[]
[]
[]
[]
[]
[]
[]
[]
[]
[]
[]
[]
[]
[]
[]
[]
[]
[null,null,null,"PERSONALIZADO LIC. JULIO CESAR VARGAS AYALA"]

{"sheet":"Aplic. SO","index":4,"n_rows":2,"n_cols":50,"rows_kept":2,"cut":false,"hidden":true,"merged":[]}
["Volver al índice","I","II","III","IV","V","VI","VII","VIII","IX","X","XI","XII","XIII","XIV","XV","XVI","XVII","XVIII","XIX","XX","XXI","XXII","XXIII","XXIV","XXV","XXVI","XXVII","XXVIII","XXIX","XXX","XXXI","XXXII","XXXIII","XXXIV","XXXV","XXXVI","XXXVII","XXXVIII","XXXIX","XL","XLI","XLII","XLIII","XLIV","XLV","XLVI","XLVII","XLVIII","texto"]
["Instituto de Transparencia, Acceso a la Información Pública y Protección de Datos Personales del Estado de Baja California","","","","","","","","","","","","","","",", XV","","","","","","",", XXII","","",", XXV",", XXVI","","","","","","","","","","","","","",", XL","",", XLII",", XLIII","","","",", XLVII","","Resulta inaplicables las siguientes fracciones: XV, XXII, XXV, XXVI, XL, XLII, XLIII, XLVII"]

{"sheet":"Obligaciones","index":5,"n_rows":108,"n_cols":15,"rows_kept":108,"cut":false,"hidden":true,"merged":[[72,6,72,7]]}
["Volver al índice","Hojas","Título","Artículo","Fracción","Inciso","No. de Crit.Sust","adj","Periodo de Actualización","del","al","RANG.SUST","del","al","RANG.ADJ"]
["Art.83_VIII_A","Art 83. VIII. OG","Art. 83 - Fracción VIII - Inciso A -  El plan de Desarrollo Institucional",83,"VIII","A",5,4,"Periodicidad de actualización:  annual",28,32,"28:32",37,40,"37:40"]
["Art.83_VIII_B","Art 83. VIII. OG","Art. 83 - Fracción VIII - Inciso B - Listas de Sujetos Obligados en el Estado",83,"VIII","B",3,4,"Periodicidad de actualización: trimestral",60,62,"60:62",67,70,"67:70"]
["Art.83_VIII_C","Art 83. VIII. OG","Art. 83 - Fracción VIII - Inciso C - La relación de observaciones y resoluciones emitidas y el seguimiento a cada una de ellas, incluyendo las respuestas entregadas por los sujetos obligados a los solicitantes en cumplimiento de las resoluciones.",83,"VIII","C",34,8,"Periodicidad de actualización: trimestral",90,123,"90:123",128,135,"128:135"]
["Art.83_VIII_D","Art 83. VIII. OG","Art. 83 - Fracción VIII - Inciso D - Los criterios orientadores que deriven de sus resoluciones",83,"VIII","D",18,8,"Periodicidad de actualización: dentro de los cinco días hábiles posteriores que se genere o modifique un criterio",155,172,"155:172",177,184,"177:184"]
["Art.83_VIII_E","Art 83. VIII. OG","Art. 83 - Fracción VIII - Inciso E - Las actas de las sesiones del pleno y las versiones estenográficas.",83,"VIII","E",11,8,"Periodicidad de actualización: mensual",204,214,"204:214",219,226,"219:226"]
["Art.83_VIII_F","Art 83. VIII. OG","Art. 83 - Fracción VIII - Inciso F - Los resultados de la evaluación al cumplimiento de la presente Ley por parte de los sujetos obligados.",83,"VIII","F",12,8,"Periodicidad de actualización: trimestral",246,257,"246:257",262,265,"262:265"]
["Art.83_VIII_G","Art 83. VIII. OG","Art. 83 - Fracción VIII - Inciso G - Los estudios que apoyan la resolución de los recursos de revisión.",83,"VIII","G",16,8,"Periodicidad de actualización: trimestral",289,304,"289:304",309,316,"309:316"]
["Art.83_VIII_H","Art 83. VIII. OG","Art. 83 - Fracción VIII - Inciso H - En su caso, las sentencias, ejecutorias o suspensiones judiciales que existan en contra de sus resoluciones.",83,"VIII","H",14,8,"Periodicidad de actualización: trimestral",336,349,"336:349",354,361,"354:361"]
["Art.83_VIII_I","Art 83. VIII. OG","Art. 83 - Fracción VIII - Inciso I - El número de quejas, denuncias y recursos de revisión dirigidos a cada uno de los sujetos obligados.",83,"VIII","I",32,8,"Periodicidad de actualización: trimestral",381,412,"381:412",417,424,"417:424"]
["Art.87_I_II","Art 87 ","Art. 87 - Fracción I - Solicitar a los sujetos obligados que, atendiendo a los lineamientos emitidos por el Sistema Nacional,remitan el listado de información que consideren de interés público;\nArt.87 - Fracción II - Revisar el listado que remitió el sujeto obligado con base en las funciones, atribuciones y competencias que la normatividad aplicable le otorgue,",87,"I-II",null,14,8,"Periodicidad de actualización: semestral",28,41,"28:41",46,53,"46:53"]
["Art.87_III","Art 87","Art. 87 - Fracción III - Determinar el catálogo de información que el sujeto obligado deberá publicar como obligación de transparencia.",87,"III",null,5,8,"Periodicidad de actualización: semestral",73,77,"73:77",82,89,"82:89"]
["Art.88","Art 88 P.FIS.MOR","Art. 88. Personas físicas o morales a las que se permitió el uso de recursos públicos",81,null,null,21,8,"Periodicidad de actualización: annual",28,48,"28:48",53,60,"53:60"]
["Art.89","Art.89"," Artículo 89. fracciónes:\nI.     Solicitar a las personas físicas o morales que, atendiendo a los lineamientos emitidos por el Sistema Nacional, remitan el listado de información que consideren de interés público;\nII.    Revisar el listado que remitió la persona física o moral en la medida en que reciban y ejerzan recursos o realicen actos de autoridad que la normatividad aplicable le otorgue, y\nIII.    Determinar las obligaciones de transparencia que deben cumplir y los plazos para ello. ",89,"I-II-III",null,16,24,"Periodicidad de actualización:",28,43,"28:43",48,55,"48:55"]
["Art.82_I","Art 82","Art. 82 - Fracción I.  Presupuesto aprobado por partida y ejercido",82,"I",null,13,4,"Periodicidad de actualización: trimestral, a excepción de los informes y documentos de naturaleza anual y otros que por virtud de Ley o disposición legal aplicable tengan un plazo y periodicidad determinada",28,40,"28:40",45,48,"45:48"]
["Art.82_II","Art 82","Art. 82 - Fracción  II - Contrato, monto y factura",82,"II",null,7,4,"Periodicidad de actualización:  trimestral, a excepción de los informes y documentos de naturaleza anual y otros que por virtud de Ley o disposición legal aplicable tengan un plazo y periodicidad determinada",68,74,"68:74",79,82,"79:82"]
["Art.82_III","Art 82","Art. 82 - Fracción III - Fecha de inicio y fecha de término",82,"III",null,4,4,"Periodicidad de actualización: trimestral, a excepción de los informes y documentos de naturaleza anual y otros que por virtud de Ley o disposición legal aplicable tengan un plazo y periodicidad determinada",102,105,"102:105",110,113,"110:113"]
["Art.82_IV","Art 82","Art. 82 - Fracción IV - Dependencia o dirección que la solicita",82,"IV",null,3,4,"Periodicidad de actualización: trimestral, a excepción de los informes y documentos de naturaleza anual y otros que por virtud de Ley o disposición legal aplicable tengan un plazo y periodicidad determinada",133,135,"133:135",140,143,"140:143"]
["Art.82_V","Art 82","Art. 82 - Fracción V - Tipo de medio de comunicación",82,"V",null,5,4,"Periodicidad de actualización:  trimestral, a excepción de los informes y documentos de naturaleza anual y otros que por virtud de Ley o disposición legal aplicable tengan un plazo y periodicidad determinada",163,167,"163:167",172,175,"172:175"]
["Art.82_VI","Art 82","Art. 82 - Fracción VI - Costo por centímetro de las publicaciones impresas y por segundo o minuto según sea el caso de la difusión en medios electrónicos",82,"VI",null,9,4,"Periodicidad de actualización: trimestral, a excepción de los informes y documentos de naturaleza anual y otros que por virtud de Ley o disposición legal aplicable tengan un plazo y periodicidad determinada",195,203,"195:203",208,211,"208:211"]
["Art.82_VII","Art 82","Art. 82 - Fracción VII - Padrón de proveedores",82,"VII",null,8,4,"Periodicidad de actualización: trimestral, a excepción de los informes y documentos de naturaleza anual y otros que por virtud de Ley o disposición legal aplicable tengan un plazo y periodicidad determinada",231,238,"231:238",243,246,"243:246"]
["Art.81_FI","Art 81","Art. 81 - Fracción I. Marco Normativo",81,"I",null,5,8,"Periodo de actualización: Trimestral",28,32,"28:32",37,44,"37:44"]
["Art.81_FII","Art 81","Art. 81 - Fracción II. Estructura orgánica ",81,"II",null,13,8,"Periodo de actualización: Trimestral",63,75,"63:75",80,87,"80:87"]
["Art.81_FIII","Art 81","Art. 81 - Fracción III. Facultades de cada Área",81,"III",null,4,8,"Periodo de actualización: Trimestral",106,109,"106:109",114,121,"114:121"]
["Art.81_FIV","Art 81","Art. 81 - Fracción IV. Metas y objetivos ",81,"IV",null,7,8,"Periodo de actualización: Anual",140,146,"140:146",151,158,"151:158"]
["Art.81_FV","Art 81","Art. 81 - Fracción V. Indicadores interés público",81,"V",null,15,8,"Periodo de actualización: Anual",177,191,"177:191",196,203,"196:203"]
["Art.81_FVI","Art 81","Art. 81 - Fracción VI. Indicadores de resultados",81,"VI",null,16,8,"Periodo de actualización: Anual",222,237,"222:237",242,249,"242:249"]
["Art.81_FVII","Art 81","Art. 81 - Fracción VII. Directorio",81,"VII",null,9,8,"Periodo de actualización: Trimestral",268,276,"268:276",281,288,"281:288"]
["Art.81_FVIII","Art 81","Art. 81 - Fracción VIII. Remuneración servidores públicos",81,"VIII",null,20,8,"Periodo de actualización: Trimestral",307,326,"307:326",331,338,"331:338"]
["Art.81_FIX","Art 81","Art. 81 - Fracción IX. Gastos de representación y viáticos",81,"IX",null,52,8,"Periodo de actualización: Trimestral",357,408,"357:408",413,420,"413:420"]
["Art.81_FX","Art 81","Art. 81 - Fracción X. Total de plazas (base y confianza)",81,"X",null,14,8,"Periodo de actualización: Trimestral",439,452,"439:452",457,464,"457:464"]
["Art.81_FXI","Art 81","Art. 81 - Fracción XI. Contrataciones honorarios",81,"XI",null,14,8,"Periodo de actualización: Trimestral",483,496,"483:496",501,508,"501:508"]
["Art.81_FXII","Art 81","Art. 81 - Fracción XII. Declaraciones patrimoniales",81,"XII",null,9,8,"Periodo de actualización: Trimestral",527,535,"527:535",540,547,"540:547"]
["Art.81_FXIII","Art 81","Art. 81 - Fracción XIII. Datos de Unidad de Transparencia",81,"XIII",null,9,8,"Periodo de actualización: Trimestral",566,574,"566:574",579,586,"579:586"]
["Art.81_FXIV","Art 81","Art. 81 - Fracción XIV. Concursos para ocupar cargos ",81,"XIV",null,16,8,"Periodo de actualización: Trimestral",605,620,"605:620",625,632,"625:632"]
["Art.81_FXV","Art 81","Art. 81 - Fracción XV. Programas sociales",81,"XV",null,57,8,"Periodo de actualización: Trimestral",651,707,"651:707",712,719,"712:719"]
["Art.81_FXVI","Art 81","Art. 81 - Fracción XVI. Relaciones laborales y recursos públicos a  sindicatos",81,"XVI",null,24,8,"Periodo de actualización: Trimestral",738,761,"738:761",766,773,"766:773"]
["Art.81_FXVII","Art 81","Art. 81 - Fracción XVII. Datos curriculares",81,"XVII",null,13,8,"Periodo de actualización: Trimestral",792,804,"792:804",809,816,"809:816"]
["Art.81_FXVIII","Art 81","Art. 81 - Fracción XVIII. Funcionarios sancionados",81,"XVIII",null,14,8,"Periodo de actualización: Trimestral",835,848,"835:848",853,860,"853:860"]
["Art.81_FXIX","Art 81","Art. 81 - Fracción XIX. Servicios ",81,"XIX",null,22,8,"Periodo de actualización: Trimestral",879,900,"879:900",905,912,"905:912"]
["Art.81_FXX","Art 81","Art. 81 - Fracción XX. Trámites",81,"XX",null,22,8,"Periodo de actualización: Trimestral",931,952,"931:952",957,964,"957:964"]
["Art.81_FXXI","Art 81","Art. 81 - Fracción XXI. Presupuesto e informes trimestrales",81,"XXI",null,16,8,"Periodo de actualización: Trimestral",983,998,"983:998",1003,1010,"1003:1010"]
["Art.81_FXXII","Art 81","Art. 81 - Fracción XXII. Deuda pública",81,"XXII",null,26,8,"Periodo de actualización: Trimestral",1029,1054,"1029:1054",1059,1066,"1059:1066"]
["Art.81_FXXIII","Art 81","Art. 81 - Fracción XXIII. Comunicación social y publicidad ",81,"XXIII",null,83,8,"Periodo de actualización: Trimestral",1085,1167,"1085:1167",1172,1179,"1172:1179"]
["Art.81_FXXIV","Art 81","Art. 81 - Fracción XXIV. Resultados de auditorías",81,"XXIV",null,24,8,"Periodo de actualización: Trimestral",1198,1221,"1198:1221",1226,1233,"1226:1233"]
["Art.81_FXXV","Art 81","Art. 81 - Fracción XXV. Dictámenes estados financieros",81,"XXV",null,9,8,"Periodo de actualización: Anual",1252,1260,"1252:1260",1265,1272,"1265:1272"]
["Art.81_FXXVI","Art 81","Art. 81 - Fracción XXVI. Personas físicas o morales a quienes se asigne recursos públicos",81,"XXVI",null,17,8,"Periodo de actualización: Trimestral",1291,1307,"1291:1307",1312,1319,"1312:1319"]
["Art.81_FXXVII","Art 81","Art. 81 - Fracción XXVII. Concesiones, contratos, convenios, permisos, licencias o autorizaciones otorgados",81,"XXVII",null,17,8,"Periodo de actualización: Trimestral",1338,1354,"1338:1354",1359,1366,"1359:1366"]
["Art.81_FXXVIII","Art 81","Art. 81 - Fracción XXVIII. Procedimientos de adjudicación directa, invitación restringida y licitaciones",81,"XXVIII",null,93,8,"Periodo de actualización: Trimestral",1385,1477,"1385:1477",1482,1489,"1482:1489"]
["Art.81_FXXIX","Art 81","Art. 81 - Fracción XXIX. Informes",81,"XXIX",null,8,8,"Periodo de actualización: Trimestral",1508,1515,"1508:1515",1520,1527,"1520:1527"]
["Art.81_FXXX","Art 81","Art. 81 - Fracción XXX. Estadísticas generadas",81,"XXX",null,10,8,"Periodo de actualización: Trimestral",1546,1555,"1546:1555",1560,1567,"1560:1567"]
["Art.81_FXXXI","Art 81","Art. 81 - Fracción XXXI. Informes de avances y documentos financieros",81,"XXXI",null,11,8,"Periodo de actualización: Trimestral",1586,1596,"1586:1596",1601,1608,"1601:1608"]
["Art.81_FXXXII","Art 81","Art. 81 - Fracción XXXII. Padrón proveedores y contratistas",81,"XXXII",null,20,8,"Periodo de actualización: Trimestral",1627,1646,"1627:1646",1651,1658,"1651:1658"]
["Art.81_FXXXIII","Art 81","Art. 81 - Fracción XXXIII. Convenios con sectores social  y privado",81,"XXXIII",null,12,8,"Periodo de actualización: Trimestral",1677,1688,"1677:1688",1693,1700,"1693:1700"]
["Art.81_FXXXIV","Art 81","Art. 81 - Fracción XXXIV. Inventario de bienes",81,"XXXIV",null,36,8,"Periodo de actualización: Sexsenal",1719,1754,"1719:1754",1759,1766,"1759:1766"]
["Art.81_FXXXV","Art 81","Art. 81 - Fracción XXXV. Recomendaciones  y su atención en materia de derechos humanos",81,"XXXV",null,51,8,"Periodo de actualización: Trimestral",1785,1835,"1785:1835",1840,1847,"1840:1847"]
["Art.81_FXXXVI","Art 81","Art. 81 - Fracción XXXVI. Resoluciones y laudos de juicios",81,"XXXVI",null,10,8,"Periodo de actualización: Trimestral",1866,1875,"1866:1875",1880,1887,"1880:1887"]
["Art.81_FXXXVII","Art 81","Art. 81 - Fracción XXXVII. Mecanismos de participación ciudadana",81,"XXXVII",null,20,8,"Periodo de actualización: Trimestral",1906,1925,"1906:1925",1930,1937,"1930:1937"]
["Art.81_FXXXVIII","Art 81","Art. 81 - Fracción XXXVIII. Programas ofrecidos",81,"XXXVIII",null,43,8,"Periodo de actualización: Trimestral",1956,1998,"1956:1998",2003,2010,"2003:2010"]
["Art.81_FXXXIX","Art 81","Art. 81 - Fracción XXXIX. Actas y resoluciones del Comité de Transparencia",81,"XXXIX",null,24,8,"Periodo de actualización: Trimestral",2029,2052,"2029:2052",2057,2064,"2057:2064"]
["Art.81_FXL","Art 81","Art. 81 - Fracción XL. Evaluaciones y encuestas a programas financiados con recursos públicos",81,"XL",null,9,8,"Periodo de actualización: Anual",2083,2091,"2083:2091",2096,2103,"2096:2103"]
["Art.81_FXLI","Art 81","Art. 81 - Fracción XLI. Estudios pagados con recursos públicos",81,"XLI",null,43,8,"Periodo de actualización: Trimestral",2122,2164,"2122:2164",2169,2176,"2169:2176"]
["Art.81_FXLII","Art 81","Art. 81 - Fracción XLII. Pagos a jubilados y pensionados",81,"XLII",null,9,8,"Periodo de actualización: Trimestral",2195,2203,"2195:2203",2208,2215,"2208:2215"]
["Art.81_FXLIII","Art 81","Art. 81 - Fracción XLIII. Ingresos totales del sujeto obligado",81,"XLIII",null,14,8,"Periodo de actualización: Trimestral",2234,2247,"2234:2247",2252,2259,"2252:2259"]
["Art.81_FXLIV","Art 81","Art. 81 - Fracción XLIV. Donaciones en dinero o en especie",81,"XLIV",null,23,8,"Periodo de actualización: Trimestral",2278,2300,"2278:2300",2305,2312,"2305:2312"]
["Art.81_FXLV","Art 81","Art. 81 - Fracción XLV. Instrumentos de archivos",81,"XLV",null,8,8,"Periodo de actualización: Trimestral",2331,2338,"2331:2338",2343,2350,"2343:2350"]
["Art.81_FXLVI","Art 81","Art. 81 - Fracción XLVI. Actas de las sesiones, opiniones y recomendaciones de los consejos consultivos",81,"XLVI",null,14,8,"Periodo de actualización: Trimestral",2369,2382,"2369:2382",2387,2394,"2387:2394"]
["Art.81_FXLVII","Art 81","Art. 81 - Fracción XLVII. Solicitudes a empresas concesionarias para la intervención de comunicaciones privadas, el acceso al registro de comunicaciones y la localización geográfica, y",81,"XLVII",null,15,8,"Periodo de actualización: Trimestral",2413,2427,"2413:2427",2432,2439,"2432:2439"]
["Art.81_FXLVIII","Art 81","Art. 81 - Fracción XLVIII. Otra información útil o relevante",81,"XLVIII",null,12,8,"Periodo de actualización: Trimestral",2458,2469,"2458:2469",2474,2481,"2474:2481"]
["Art.81_UltPa","Art 81","Art. 81 - Último Párrafo. Aplicabilidad y conservación",81,"ltPa",null,3,8,"Periodo de actualización: Anual",2500,2502,"2500:2502",2507,2514,"2507:2514"]
[null,null,null,null,null,null,"No. de Crit.Sust","No. de Crit.Adj"]
[null,null,null,null,null,null,{"$f":"SUM(G2:G70)","v":1285},{"$f":"SUM(H2:H70)","v":532}]
[null,null,null,null,null,null,{"$f":"SUM(G2:H70)","v":1817}]
[]
[]
[]
[]
[]
[]
[]
[]
[]
[]
[]
[]
[]
[]
[]
[]
[]
[]
[]
[]
[]
[]
[]
[]
[]
[]
[]
[]
[]
[]
[]
[]
[]
[]
[null,null,null,null,null,null,null,null,"PERSONALIZADO LIC. JULIO CESAR VARGAS AYALA"]

{"sheet":"Art. 87","index":6,"n_rows":89,"n_cols":7,"rows_kept":89,"cut":false,"hidden":true,"merged":[[68,4,68,6],[0,2,0,6],[2,2,2,6],[16,1,16,7],[23,4,23,6],[61,1,61,7]]}
["Volver al índice",null,{"$f":"IF(#REF!=\"\",\"\",#REF!)","v":{"$error":"#REF!"}}]
[]
[null,null,"El artículo 87 dice a la letra:\nArtículo 87 .- Para determinar la información adicional que publicarán todos los sujetos obligados de\nmanera obligatoria, el Instituto deberá:\n"]
[]
[null,null,"Fecha de Inicio de la Verificación:",null,null,null,"Fecha de Término de la verificación"]
[]
[]
[]
[null,null,"Índice de Criterios Sustantivos:  ",null,{"$f":"IF(#REF!=\"NO\",\"NA\",AVERAGE(E19,E64))","v":{"$error":"#REF!"}}]
[null,null,"Índice de Criterios Adjetivos:  ",null,{"$f":"IF(#REF!=\"NO\",\"NA\",AVERAGE(E20,E65))","v":{"$error":"#REF!"}}]
[null,null,"Índice del Artículo:  ",null,{"$f":"IF(#REF!=\"NO\",\"NA\",AVERAGE(E21,E66))","v":{"$error":"#REF!"}}]
[]
[]
[null,"Códigos de valoración : Cumplió totalmente = 1; Cumplió parcialmente = 0.5; No cumplió = 0; Justificado = Justificado"]
[]
[]
[null,"Art. 87 - Fracción I - Solicitar a los sujetos obligados que, atendiendo a los lineamientos emitidos por el Sistema Nacional, \nremitan el listado de información que consideren de interés público;\nArt.87 - Fracción II - Revisar el listado que remitió el sujeto obligado con base en las funciones, atribuciones y competencias \nque la normatividad aplicable le otorgue,"]
[]
[null,null,"Criterios Sustantivos",null,{"$f":"IF(SUM(D28:D41)=0,\"NA\",SUM(E28:E41)/SUM(D28:D41))","v":0}]
[null,null,"Criterios Adjetivos",null,{"$f":"IF(SUM(D28:D41)=0,\"NA\",SUM(E46:E53)/SUM(D46:D53))","v":0}]
[null,null,"Fracción:",null,{"$f":"IF(SUM(D28:D41)=0,\"NA\",E19*0.6+E20*0.4)","v":0},null,"Periodicidad de actualización: Semestral"]
[]
[]
[]
[null,null,"Criterios Sustantivos de contenido"]
[]
[null,null,"Criterio",null,"Valoración","Tipo","Observaciones, Recomendaciones y/o Requerimientos"]
[null,null," Respecto del registro elaborado por los Organismos garantes con la información de la solicitud realizada a los sujetos obligados del listado con la información que consideren de interés público, incluirán lo siguiente:\nCriterio 1. Ejercicio",{"$f":"IF(E28=\"Justificado\",0,1)","v":1}]
[null,null,"Criterio 2. Nombre del sujeto obligado",1]
[null,null,"Criterio 3. Número de oficio mediante el cual se informa y requiere a los sujetos obligados el listado de información que consideren de interés público",1]
[null,null,"Criterio 4. Fecha del oficio enviado a cada sujeto obligado expresada en el formato día/mes/año, por ej. 31/Marzo/2016",1]
[null,null,"Criterio 5. Periodo de la recepción del listado (fecha de inicio y fecha de término, ambas expresadas en el formato día/mes/año, por ej. 31/Marzo/2016",1]
[null,null,"Criterio 6. Hipervínculo al listado de información que se considere de interés público de cada sujeto obligado",1]
[null,null,"Respecto del proceso de revisión del listado, los Organismos garantes publicarán\nCriterio 7. Denominación de la unidad(es) administrativa(s) responsable(s) de la revisión de cada listado recibido con la información que se considere de interés",1]
[null,null,"Criterio 8. Metodología o criterios, con base en los Lineamientos emitidos por el Sistema Nacional, para determinar lo que se definirá como información de interés pública adicional y obligatoria",1]
[null,null,"Criterio 9. Periodo en el que se realizará la revisión de cada listado (fecha de inicio y fecha de término, ambas expresadas en el formato día/mes/año, por ej. 31/Marzo/2016",1]
[null,null,"Una vez concluida la revisión de cada listado recibido, se informará:\nCriterio 10. Tipo de sesión en la que se aprueba el catálogo de información que el sujeto obligado deberá publicar como obligación de transparencia",1]
[null,null,"Criterio 11. Fecha de la sesión expresada en el formato día/mes/año, por ej. 31/Marzo/2016",1]
[null,null,"Criterio 12. Hipervínculo al Acuerdo mediante el cual se aprueba el catálogo de información que el sujeto obligado deberá publicar",1]
[null,null,"Criterio 13. Fecha de publicación en el Diario Oficial de la Federación, Gaceta, periódico o cualquier otro medio de difusión oficial que corresponda, expresada en el formato día/mes/año, por ej. 31/Marzo/2016",1]
[null,null,"Criterio 14. Hipervínculo al Catálogo de información que el sujeto obligado deberá publicar como obligación de transparencia",1]
[]
[null,null,"Criterios Adjetivos"]
[]
[null,null,"Criterio",null,"Valoración","Tipo","Observaciones, Recomendaciones y/o Requerimientos"]
[null,null,"Criterio 15. Periodo de actualización de la información: semestral",{"$f":"IF(E46=\"Justificado\",0,1)","v":1}]
[null,null,"Criterio 16. La información publicada deberá estar actualizada al periodo que corresponde, de acuerdo con la Tabla de actualización y conservación de la información",1]
[null,null,"Criterio 17. Conservar en el sitio de Internet y a través de la Plataforma Nacional la información vigente, de acuerdo con la Tabla de actualización y conservación de la información",1]
[null,null,"Criterio 18. Área(s) o unidad(es) administrativa(s) que genera(n) o posee(n) la información respectiva y son responsables de publicarla y actualizarla",1]
[null,null,"Criterio 19. Fecha de actualización de la información publicada con el formato día/mes/año (por ej. 31/Marzo/2016)",1]
[null,null,"Criterio 20. Fecha de validación de la información publicada con el formato día/mes/año (por ej. 31/Marzo/2016)",1]
[null,null,"Criterio 21. La información publicada se organiza mediante los formatos 1a, 1b y 1c, en los que se incluyen todos los campos especificados en los criterios sustantivos de contenido",1]
[null,null,"Criterio 22. El soporte de la información permite su reutilización",1]
[]
[]
[]
[]
[]
[]
[]
[]
[null,"Art. 87 - Fracción III - Determinar el catálogo de información que el sujeto obligado deberá publicar como obligación de transparencia."]
[]
[null,null,"Criterios Sustantivos",null,{"$f":"IF(SUM(D73:D77)=0,\"NA\",SUM(E73:E77)/SUM(D73:D77))","v":0}]
[null,null,"Criterios Adjetivos",null,{"$f":"IF(SUM(D73:D77)=0,\"NA\",SUM(E82:E89)/SUM(D82:D89))","v":0}]
[null,null,"Fracción:",null,{"$f":"IF(SUM(D73:D77)=0,\"NA\",E64*0.6+E65*0.4)","v":0},null,"Periodicidad de actualización: Semestral"]
[]
[]
[]
[null,null,"Criterios Sustantivos de contenido"]
[]
[null,null,"Criterio",null,"Valoración","Tipo","Observaciones, Recomendaciones y/o Requerimientos"]
[null,null,"Criterio 1. Ejercicio",{"$f":"IF(E73=\"Justificado\",0,1)","v":1}]
[null,null,"Criterio 2. Periodo que se informa",{"$f":"IF(E74=\"Justificado\",0,1)","v":1}]
[null,null,"Criterio 3. Hipervínculo al catálogo de información que el sujeto obligado deberá publicar como obligación de transparencia adicional",{"$f":"IF(E75=\"Justificado\",0,1)","v":1}]
[null,null,"Criterio 4. Tema que se reporta",{"$f":"IF(E76=\"Justificado\",0,1)","v":1}]
[null,null,"Criterio 5. Hipervínculo a la información determinada en el catálogo",{"$f":"IF(E77=\"Justificado\",0,1)","v":1}]
[]
[null,null,"Criterios Adjetivos"]
[]
[null,null,"Criterio",null,"Valoración","Tipo","Observaciones, Recomendaciones y/o Requerimientos"]
[null,null,"Criterio 6. Periodo de actualización de la información: semestral",{"$f":"IF(E82=\"Justificado\",0,1)","v":1}]
[null,null,"Criterio 7. La información publicada deberá estar actualizada al periodo que corresponde, de acuerdo con la Tabla de actualización y conservación de la información",1]
[null,null,"Criterio 8. Conservar en el sitio de Internet y a través de la Plataforma Nacional la información vigente, de acuerdo con la Tabla de actualización y conservación de la información",1]
[null,null,"Criterio 9. Área(s) o unidad(es) administrativa(s) que genera(n) o posee(n) la información respectiva y son responsables de publicarla y actualizarla",1]
[null,null,"Criterio 10. Fecha de actualización de la información publicada con el formato día/mes/año (por ej. 31/Marzo/2016)",1]
[null,null,"Criterio 11. Fecha de validación de la información publicada con el formato día/mes/año (por ej. 31/Marzo/2016)",1]
[null,null,"Criterio 12. La información publicada se organiza mediante el formato 1d, en el que se incluyen todos los campos especificados en los criterios sustantivos de contenido",1]
[null,null,"Criterio 13. El soporte de la información permite su reutilización",1]

{"sheet":"Art. 88","index":7,"n_rows":60,"n_cols":7,"rows_kept":60,"cut":false,"hidden":true,"merged":[[0,2,0,6],[2,2,2,6],[16,1,16,7],[23,4,23,6]]}
["Volver al índice",null,{"$f":"IF(#REF!=\"\",\"\",#REF!)","v":{"$error":"#REF!"}}]
[]
[null,null,"El artículo 88 dice a la letra:\nArtículo 88 .- El Instituto determinará los\ncasos en que las personas físicas o morales que reciban y ejerzan recursos públicos o realicen actos de\nautoridad, cumplirán con las obligaciones de transparencia y acceso a la información directamente o a\ntravés de los sujetos obligados que les asignen dichos recursos o, en los términos de las disposiciones\naplicables, realicen actos de autoridad.\nLos sujetos obligados correspondientes deberán enviar al Instituto un\nlistado de las personas físicas o morales a los que, por cualquier motivo, asignaron recursos públicos o,\nen los términos que establezcan las disposiciones aplicables, ejercen actos de autoridad.\nPara resolver sobre el cumplimento de lo señalado en el párrafo anterior, el Instituto tomará en cuenta si realiza una función gubernamental, el nivel de financiamiento público, el nivel de regulación e involucramiento gubernamental y si el gobierno participó en su creación."]
[]
[null,null,"Fecha de Inicio de la Verificación:",null,null,null,"Fecha de Término de la verificación"]
[]
[]
[]
[null,null,"Índice de Criterios Sustantivos:  ",null,{"$f":"IF(#REF!=\"NO\",\"NA\",AVERAGE(E19))","v":{"$error":"#REF!"}}]
[null,null,"Índice de Criterios Adjetivos:  ",null,{"$f":"IF(#REF!=\"NO\",\"NA\",AVERAGE(E20))","v":{"$error":"#REF!"}}]
[null,null,"Índice del Artículo:  ",null,{"$f":"IF(#REF!=\"NO\",\"NA\",AVERAGE(E21))","v":{"$error":"#REF!"}}]
[]
[]
[null,"Códigos de valoración : Cumplió totalmente = 1; Cumplió parcialmente = 0.5; No cumplió = 0; Justificado = Justificado"]
[]
[]
[null,"Art. 88. Personas físicas o morales a las que se permitió el uso de recursos públicos"]
[]
[null,null,"Criterios Sustantivos",null,{"$f":"IF(SUM(D28:D48)=0,\"NA\",SUM(E28:E48)/SUM(D28:D48))","v":0}]
[null,null,"Criterios Adjetivos",null,{"$f":"IF(SUM(D28:D48)=0,\"NA\",SUM(E53:E60)/SUM(D53:D60))","v":0}]
[null,null,"Fracción:",null,{"$f":"IF(SUM(D28:D48)=0,\"NA\",E19*0.6+E20*0.4)","v":0},null,"Periodicidad de actualización: Anual"]
[]
[]
[]
[null,null,"Criterios Sustantivos de contenido"]
[]
[null,null,"Criterio",null,"Valoración","Tipo","Observaciones, Recomendaciones y/o Requerimientos"]
[null,null,"Criterio 1. Ejercicio",{"$f":"IF(E28=\"Justificado\",0,1)","v":1}]
[null,null,"Criterio 2. Periodo que se informa",1]
[null,null,"Criterio 3. Sujeto obligado que envió el listado de personas físicas o morales a las que se les otorgó o permitió el uso de recursos públicos durante el ejercicio anterior y el ejercicio en curso, además de aquellos que realicen o hayan realizado actos de autoridad",1]
[null,null,"Criterio 4. Fecha de recepción del listado con el formato (día/mes/año)",1]
[null,null,"Criterio 5. Hipervínculo al listado de personas físicas o morales a las que se les otorgó o permitió el uso de recursos públicos durante el ejercicio anterior y, en su caso, el ejercicio en curso, además de aquellos que realicen o hayan realizado actos de autoridad (documento) recibido",1]
[null,null,"Criterio 6. Fecha de la sesión del Pleno del Organismo garante correspondiente en que se aprobó el Padrón de Personas físicas y morales sujetas a obligaciones de transparencia y acceso a la información (con formato día/mes/año)",1]
[null,null,"Criterio 7. Criterio/Exposición de motivos/investigación/análisis en los cuales se basó el Pleno del Organismo correspondiente para llegar al Acuerdo mencionado",1]
[null,null,"Criterio 8. Fecha de publicación en el diario, periódico o gaceta oficial correspondiente al nivel de gobierno al que pertenezcan",1]
[null,null,"Criterio 9. Hipervínculo al Acuerdo aprobado por el Pleno del Organismo",1]
[null,null,"Criterio 10. Hipervínculo al Padrón de Personas físicas y morales sujetas a obligaciones de transparencia y acceso a la información",1]
[null,null,"Criterio 11. Ejercicio",1]
[null,null,"Criterio 12. Sujeto obligado responsable de la asignación de recursos públicos o actos de autoridad",1]
[null,null,"Criterio 13. Nombre de la persona física (nombre[s], primer apellido, segundo apellido) o denominación de la persona moral que reciba o utilice recursos públicos o que ejerza actos de autoridad",1]
[null,null,"Criterio 14. Tipo de acción conferida (recibe recursos públicos, utilizó recursos públicos, ejerce actos de autoridad)",1]
[null,null,"Criterio 15. Cumplimiento de obligaciones de transparencia: Directamente/ A través del sujeto obligado",1]
[null,null,"Criterio 16. Ejercicio",1]
[null,null,"Criterio 17. Hipervínculo al Acuerdo aprobado por el Pleno del Organismo garante correspondiente, en el cual se observe el padrón de personas físicas y morales sujetas a obligaciones de transparencia y acceso a la información",1]
[null,null,"Criterio 18. Ejercicio",1]
[null,null,"Criterio 19. Nombre de la persona física (nombre(s), primer apellido, segundo apellido) o denominación de la persona moral que reciba y utilice recursos públicos o que ejerza actos de autoridad",1]
[null,null,"Criterio 20. Tipo de acción conferida: recibe y utiliza recursos públicos/ejerce actos de autoridad",1]
[null,null,"Criterio 21. Cumplimiento de obligaciones de transparencia: Directamente/ A través del sujeto obligado responsable",1]
[]
[null,null,"Criterios Adjetivos"]
[]
[null,null,"Criterio",null,"Valoración","Tipo","Observaciones, Recomendaciones y/o Requerimientos"]
[null,null,"Criterio 22. Periodo de actualización de la información: anual",{"$f":"IF(E53=\"Justificado\",0,1)","v":1}]
[null,null,"Criterio 23. La información deberá estar actualizada al periodo que corresponde de acuerdo con la Tabla de actualización y conservación de la información",1]
[null,null,"Criterio 24. Conservar en el sitio de Internet y a través de la Plataforma Nacional la información de acuerdo con la Tabla de actualización y conservación de la información",1]
[null,null,"Criterio 25. Área(s) o unidad(es) administrativa(s) que genera(n) o posee(n) la información respectiva y son responsables de publicarla y actualizarla",1]
[null,null,"Criterio 26. Fecha de actualización de la información publicada con el formato día/mes/año (por ej. 31/Marzo/2016)",1]
[null,null,"Criterio 27. Fecha de validación de la información publicada con el formato día/mes/año (por ej. 31/Marzo/2016)",1]
[null,null,"Criterio 28. La información publicada por los Organismos garantes se organiza mediante los formatos 81a y 81b. Por su parte, los sujetos obligados publicarán la información en los formatos 81c y 81d. En los formatos se incluyen todos los campos especificados en los criterios sustantivos de contenido",1]
[null,null,"Criterio 29. El soporte de la información permite su reutilización",1]

{"sheet":"Art. 89","index":8,"n_rows":55,"n_cols":7,"rows_kept":55,"cut":false,"hidden":true,"merged":[[0,2,0,6],[2,2,2,6],[16,1,16,7],[23,4,23,6]]}
["Volver al índice",null,{"$f":"IF(#REF!=\"\",\"\",#REF!)","v":{"$error":"#REF!"}}]
[]
[null,null,"El artículo 89 dice a la letra:\nArtículo 89. Para determinar la información que deberán hacer pública las personas físicas o morales\nque reciben y ejercen recursos públicos o realizan actos de autoridad, el Instituto deberá:"]
[]
[null,null,"Fecha de Inicio de la Verificación:",null,null,null,"Fecha de Término de la verificación"]
[]
[]
[]
[null,null,"Índice de Criterios Sustantivos:  ",null,{"$f":"IF(#REF!=\"NO\",\"NA\",AVERAGE(E19))","v":{"$error":"#REF!"}}]
[null,null,"Índice de Criterios Adjetivos:  ",null,{"$f":"IF(#REF!=\"NO\",\"NA\",AVERAGE(E20))","v":{"$error":"#REF!"}}]
[null,null,"Índice del Artículo:  ",null,{"$f":"IF(#REF!=\"NO\",\"NA\",AVERAGE(E21))","v":{"$error":"#REF!"}}]
[]
[]
[null,"Códigos de valoración : Cumplió totalmente = 1; Cumplió parcialmente = 0.5; No cumplió = 0; Justificado = Justificado"]
[]
[]
[null," Artículo 89. fracciónes:\nI.     Solicitar a las personas físicas o morales que, atendiendo a los lineamientos emitidos por el Sistema Nacional, remitan el listado de información que consideren de interés público;\nII.    Revisar el listado que remitió la persona física o moral en la medida en que reciban y ejerzan recursos o realicen actos de autoridad que la normatividad aplicable le otorgue, y\nIII.    Determinar las obligaciones de transparencia que deben cumplir y los plazos para ello. "]
[]
[null,null,"Criterios Sustantivos",null,{"$f":"IF(SUM(D28:D43)=0,\"NA\",SUM(E28:E43)/SUM(D28:D43))","v":0}]
[null,null,"Criterios Adjetivos",null,{"$f":"IF(SUM(D28:D43)=0,\"NA\",SUM(E48:E55)/SUM(D48:D55))","v":0}]
[null,null,"Fracción:",null,{"$f":"IF(SUM(D28:D43)=0,\"NA\",E19*0.6+E20*0.4)","v":0},null,"Periodicidad de actualización: Anual"]
[]
[]
[]
[null,null,"Criterios Sustantivos de contenido"]
[]
[null,null,"Criterio",null,"Valoración","Tipo","Observaciones, Recomendaciones y/o Requerimientos"]
[null,null,"Criterio 1.  Respecto a los listados recibidos por parte de las personas físicas y morales, los Organismos garantes deberán publicar los siguientes datos:\nEjercicio",{"$f":"IF(E28=\"Justificado\",0,1)","v":1}]
[null,null,"Criterio 2. Número de oficio o nomenclatura del mismo por el cual solicitaron formalmente el listado de la información de interés público",1]
[null,null,"Criterio 3. Fecha en la que el Organismo garante envió el oficio a las personas físicas y morales (con el formato día/mes/año)",1]
[null,null,"Criterio 4. Fecha en la que el Organismo garante recibió el listado (con el formato día/mes/año, por ej. 31/Marzo/2016)",1]
[null,null,"Criterio 5. Hipervínculo al listado recibido",1]
[null,null,"Criterio 6.  Respecto a la determinación que apruebe el Pleno, cada Organismo garante deberá publicar los siguientes datos:\nEjercicio",1]
[null,null,"Criterio 7. Fecha de publicación en el diario, periódico o gaceta oficial correspondiente al orden de gobierno al que pertenezcan, del padrón de personas físicas y morales sujetas a cumplir con las obligaciones de transparencia y acceso a la información (con el formato día/mes/año, por ej. 31/Marzo/2016)",1]
[null,null,"Criterio 8. Hipervínculo al padrón de personas físicas y morales sujetas a cumplir con las obligaciones de transparencia y acceso a la información",1]
[null,null,"Criterio 9. Hipervínculo a la tabla de aplicabilidad de las obligaciones comunes especificada en el artículo 70 de la Ley General que deberán publicar las personas físicas y morales sujetas a cumplir con las obligaciones de transparencia y acceso a la información",1]
[null,null,"Criterio 10. Hipervínculo a la tabla de aplicabilidad de la información de interés público que deberán publicar las personas físicas y morales sujetas a cumplir con las obligaciones de transparencia y acceso a la información ",1]
[null,null,"Criterio 11. Hipervínculo a la tabla de actualización de la información que deberán publicar las personas físicas y morales sujetas a cumplir con las obligaciones de transparencia y acceso a la información",1]
[null,null,"Criterio 12.  Respecto a la información que cada Organismo garante determine, las personas físicas y morales deberán publicar y mantener actualizada trimestralmente, por lo menos, los siguientes datos:\nEjercicio",1]
[null,null,"Criterio 13. Periodo que reporta",1]
[null,null,"Criterio 14. Actividad o información de interés público",1]
[null,null,"Criterio 15. Fundamento jurídico para la realización de dicha actividad",1]
[null,null,"Criterio 16. Periodicidad de dicha actividad",1]
[]
[null,null,"Criterios Adjetivos"]
[]
[null,null,"Criterio",null,"Valoración","Tipo","Observaciones, Recomendaciones y/o Requerimientos"]
[null,null,"Criterio 17. Periodo de actualización de la información",{"$f":"IF(E48=\"Justificado\",0,1)","v":1}]
[null,null,"Criterio 18. La información deberá estar actualizada al periodo que corresponde de acuerdo con la Tabla de actualización y conservación de la información",1]
[null,null,"Criterio 19. Conservar en el sitio de Internet y a través de la Plataforma Nacional la información vigente de acuerdo con la Tabla de actualización y conservación de la información",1]
[null,null,"Criterio 20. Área(s) o unidad(es) administrativa(s) que genera(n) o posee(n) la información respectiva y son responsables de publicarla y actualizarla",1]
[null,null,"Criterio 21. Fecha de actualización de la información publicada con el formato día/mes/año (por ej. 31/Marzo/2016)",1]
[null,null,"Criterio 22. Fecha de validación de la información publicada con el formato día/mes/año (por ej. 31/Marzo/2016)",1]
[null,null,"Criterio 23. La información publicada se organiza mediante los formatos 82a y 82b para los Organismos garantes y respecto a las personas físicas y morales mediante el formato 82c, en los que se incluyen todos los campos especificados en los criterios sustantivos de contenido",1]
[null,null,"Criterio 24. El soporte de la información permite su reutilización",1]

{"sheet":"Reporte","index":9,"n_rows":2,"n_cols":3,"rows_kept":2,"cut":false,"hidden":false,"merged":[[1,1,1,4],[0,2,0,4]]}
[null,"                \n\n\n\n\n\nInstituto de Transparencia, Acceso a la Información Pública y \nProtección de Datos Personales de Baja California ","Requerimientos derivadas de la verificación virtual oficiosa 2020 de las obligaciones de transparencia establecidas en la Ley General y Ley Local de Transparencia.\nSIPOT\nInstituto de Transparencia, Acceso a la Información Pública y Protección de Datos Personales del Estado de Baja California\nVerificaciòn 2do Trimestre 2020"]
[null,"Instituto de Transparencia, Acceso a la Información Pública y Protección de Datos Personales del Estado de Baja California"]